Cogmind - Beta 11 X8 @@@ ROGUE MODE // 2021.11.27 @ 17:47:01 Player: Runia Result: Destroyed by D-53 Grenadier with Mini Grenade Launcher Performance ------------- Evolutions (0) 0 Regions Visited (2) 400 Robots Destroyed (29) 145 Value Destroyed (572) 572 Prototype IDs (4) 80 Alien Tech Used (0) 0 Bonus (0) 0 TOTAL SCORE: 1197 Bonus ------- None Cogmind --------- Core Integrity 0/250 Matter 248/300 Energy 248/250 System Corruption 0% Temperature Cool (0) Movement Treading (240) Ox1 Location -10/Mines Parts ------- > --- POWER (1) -------- Ion Engine > --- PROPULSION (2) --- Light Treads Light Treads > --- UTILITY (2) ------ High-capacity Storage Unit Light Armor Plating > --- WEAPON (2) ------- Assault Rifle Minigun > --- INVENTORY (20) --- Light Nuclear Core Light Treads Light Treads Light Treads High-capacity Matter Pod (200) Structural Scanner Improved Terrain Scanner Light Armor Plating Electrolaser Assault Rifle Assault Rifle Assault Rifle Assault Rifle Assault Rifle Assault Rifle Assault Rifle Mining Claw Scythe Peak State ------------ > --- POWER ------------ Light Ion Engine > --- PROPULSION ------- Light Treads Light Treads > --- UTILITY ---------- Small Storage Unit Visual Processing Unit > --- WEAPON ----------- Improved EM Shotgun Improved EM Shotgun > --- INVENTORY -------- Light Ion Engine Wheel Wheel EM Pulse Gun Improved EM Shotgun Improved EM Shotgun Assault Rifle Light Assault Rifle [Rating: 13] Favorites ----------- Power Light Ion Engine Engine Light Ion Engine Propulsion Light Treads Treads Light Treads Leg Aluminum Leg Utility High-capacity Storage Unit Storage High-capacity Storage Unit Processor Visual Processing Unit Protection Light Armor Plating Weapon Assault Rifle Energy Gun Improved EM Shotgun Ballistic Gun Assault Rifle Build | -11 -10 -10 ------- Run | Scr Mat Min Slots Evolved . | . . . Power . | . . . Propulsion . | . . . Utility . | . . . Weapon . | . . . Parts Attached 24 | 2 19 3 Power 2 | . 1 1 Engine 2 | . 1 1 Core . | . . . Reactor . | . . . Propulsion 5 | 2 3 . Treads 5 | 2 3 . Leg . | . . . Wheel . | . . . Hover . | . . . Flight . | . . . Utility 5 | . 4 1 Device . | . . . Storage 2 | . 2 . Processor 1 | . 1 . Hackware . | . . . Protection 2 | . 1 1 Artifact . | . . . Weapon 12 | . 11 1 Energy Gun 6 | . 6 . Energy Cannon . | . . . Ballistic Gun 6 | . 5 1 Ballistic Cannon . | . . . Launcher . | . . . Special Weapon . | . . . Impact Weapon . | . . . Slashing Weapon . | . . . Piercing Weapon . | . . . Special Melee Weapon . | . . . Unidentified Prototypes 1 | . 1 . Parts Lost 1 | . 1 . Power 1 | . 1 . Propulsion . | . . . Utility . | . . . Weapon . | . . . Highest Loss Streak 1 | . 1 . Average Slot Usage (%) 91 | . 94 85 Engine 13 | . 13 14 Treads 27 | . 27 28 Storage 14 | . 14 14 Processor 2 | . 4 . Protection 3 | . 5 . Energy Gun 7 | . 10 . Ballistic Gun 20 | . 17 28 Naked Turns . | . . . Heaviest Build 50 | 12 50 50 Greatest Support 40 | 40 40 40 Greatest Overweight (x) 1 | . 1 1 Average Overweight (x) . | . . 1 Largest Inventory Capacity 20 | 8 20 20 Average Capacity 16 | 8 15 20 Most Carried 19 | 6 15 19 Average Carried 12 | 5 10 16 Final Capacity 20 | 8 20 20 Final Carried 18 | 4 15 18 Class Distribution -------------------- 100% | Mutant Dominant Class ---------------- Mutant | -10/Materials Mutant | -10/Mines Resources | -11 -10 -10 ----------- Run | Scr Mat Min Matter Collected 755 | 200 535 20 Remotely . | . . . Salvage Created 942 | . 942 . Parts 66 | . 66 . Haulers Intercepted 2 | . 2 . Recyclers Shooed 1 | . . 1 Parts Field Recycled . | . . . Retrieved Matter . | . . . Parts Self-Destructed . | . . . Prevented . | . . . Kills | -11 -10 -10 ------- Run | Scr Mat Min Combat Hostiles Destroyed 18 | . 18 . Guns 15 | . 15 . AOE 3 | . 3 . Classes Destroyed 8 | . 8 . Worker 1 | . 1 . Builder 2 | . 2 . Hauler 2 | . 2 . Recycler 2 | . 2 . Operator 1 | . 1 . Watcher 3 | . 3 . Swarmer 6 | . 6 . Grunt 12 | . 12 . Best Kill Streak 8 | . 8 . Combat Bots Only 3 | . 3 . Max Kills in Single Turn 2 | . 2 . Gunslinging . | . . . Exploded 2 | . 2 . Melee . | . . . Uniques/NPCs Destroyed . | . . . Combat | -11 -10 -10 -------- Run | Scr Mat Min Damage Taken 1019 | . 433 586 Core 254 | . 79 175 Absorbed by Shields . | . . . Core Remaining (%) 100 | 100 . . Volleys Fired 66 | . 60 6 Largest 2 | . 2 2 Hottest 90 | . 90 45 Shots Fired 132 | . 120 12 Gun 132 | . 120 12 Cannon . | . . . Launcher . | . . . Special . | . . . Kinetic 58 | . 46 12 Thermal 16 | . 16 . Explosive . | . . . Electromagnetic 58 | . 58 . Robot Hit Streak 18 | . 17 18 Robot Miss Streak 7 | . 7 3 Penetration Max . | . . . Secondary Targets 1 | . 1 . Max Gunslinging Chain 1 | . 1 . Shots Hit Robots 85 | . 80 5 Core Hits 47 | . 45 2 Critical Kills 1 | . 1 . Critical Parts Destroyed 1 | . 1 . Critical Strikes 3 | . 3 . Burn 1 | . 1 . Destroy 2 | . 2 . Melee Attacks . | . . . Impact . | . . . Slashing . | . . . Piercing . | . . . Sneak Attacks . | . . . Combat Hostiles . | . . . Follow-up Attacks . | . . . Damage Inflicted 1410 | . 1346 64 Guns 1289 | . 1225 64 Cannons . | . . . Explosions 121 | . 121 . Melee . | . . . Ramming . | . . . Kinetic 521 | . 457 64 Thermal 264 | . 264 . Explosive . | . . . Electromagnetic 625 | . 625 . Impact . | . . . Slashing . | . . . Piercing . | . . . Highest Corruption . | . . . Average Corruption . | . . . Corruption Purged . | . . . Overload Shots . | . . . Overflow Damage . | . . . Projectiles . | . . . Explosions . | . . . Melee . | . . . Knockbacks . | . . . Impact . | . . . Kinetic . | . . . Secondary . | . . . Self-Inflicted Damage 16 | . 16 . Shots 1 | . 1 . Rammed . | . . . Targets Rammed . | . . . Kicked . | . . . Crushed . | . . . Highest Temperature 204 | . 204 10 Average Temperature 65 | . 68 6 Received Heat Transfer 198 | . 198 . Siege Activations . | . . . Robots Corrupted . | . . . Combat Hostiles . | . . . Parts Fried 4 | . 4 . Impact Corruptions . | . . . Robots Melted . | . . . Combat Hostiles . | . . . Parts Melted 3 | . 3 . Heat Transferred 581 | . 581 . Parts Sabotaged . | . . . Parts Stolen . | . . . Parts Stripped . | . . . Power Chain Reactions 2 | . 2 . Missiles Intercepted . | . . . Alert | -11 -10 -10 ------- Run | Scr Mat Min Peak Influence 361 | . 361 35 Initial 35 | . . 35 Average 150 | . 213 17 Maximum Alert Level 1 | . 1 . Low Security (%) 60 | 100 41 100 Level 1 39 | . 58 . Level 2 . | . . . Level 3 . | . . . Level 4 . | . . . Level 5 . | . . . High Security . | . . . Max Security . | . . . Squads Dispatched 5 | . 4 1 Investigation 4 | . 3 1 Extermination . | . . . Reinforcement 1 | . 1 . Assault . | . . . Garrison . | . . . Intercept . | . . . Construction Impeded . | . . . Haulers Reinforced . | . . . Active Scanning Responses . | . . . Cargo Convoy Interrupts . | . . . Stealth | -11 -10 -10 --------- Run | Scr Mat Min Distress Signals 3 | . 3 . Communications Jammed . | . . . Distress Signals . | . . . Times Spotted 27 | . 25 2 Peak Tracking Total 5 | . 5 2 Tactical Retreats 1 | . 1 . Traps | -11 -10 -10 ------- Run | Scr Mat Min Traps Triggered 2 | . 2 . Indirectly . | . . . Trap Hack Attempts . | . . . Triggered . | . . . Disarmed . | . . . Reprogrammed . | . . . Reused . | . . . Traps Extracted . | . . . Installed . | . . . Triggered . | . . . Machines | -11 -10 -10 ---------- Run | Scr Mat Min Machines Disabled . | . . . Max in Single Turn . | . . . Machines Sabotaged . | . . . Garrisons Compromised . | . . . Overloaded Fab Kills . | . . . Hacking | -11 -10 -10 --------- Run | Scr Mat Min Machines Accessed 9 | . 8 1 Terminals 5 | . 5 . Fabricators . | . . . Repair Stations 1 | . 1 . Recycling Units 2 | . 2 . Scanalyzers . | . . . Garrison Access . | . . . Total Hacks 26 | . 25 1 Successful 19 | . 18 1 Failed 6 | . 6 . Catastrophic . | . . . Database Lockouts 1 | . 1 . Manual 9 | . 9 . Terminals 17 | . 17 . Fabricators . | . . . Repair Stations 6 | . 6 . Recycling Units 2 | . 2 . Scanalyzers . | . . . Garrison Access . | . . . Terminal Hacks 11 | . 10 1 Robot Analysis 2 | . 2 . Prototype ID Bank 2 | . 2 . Open Door 1 | . . 1 Branch Access Points 1 | . 1 . Terminal Index 1 | . 1 . Locate Traps 1 | . 1 . Zone Layout 3 | . 3 . Fabricator Hacks . | . . . Repair Station Hacks 6 | . 6 . Scan Component 3 | . 3 . Repair 3 | . 3 . Recycling Unit Hacks . | . . . Scanalyzer . | . . . Garrison Access Hacks . | . . . Unauthorized Hacks 2 | . 2 . Terminals . | . . . Fabricators . | . . . Repair Stations . | . . . Recycling Units 2 | . 2 . Tunnel 2 | . 2 . Scanalyzers . | . . . Garrison Access . | . . . Data Cores Recovered . | . . . Used . | . . . Hacking Detections 5 | . 5 . Full Trace Events . | . . . Feedback Events . | . . . Feedback Blocked . | . . . Robot Schematics Acquired . | . . . Robots Built . | . . . Authchips . | . . . Time . | . . . Total Robot Build Rating . | . . . Part Schematics Acquired . | . . . Parts Built . | . . . Authchips . | . . . Time . | . . . Total Part Build Rating . | . . . Parts Repaired 3 | . 3 . Time 78 | . 78 . Parts Recycled . | . . . Recycled Matter . | . . . Retrieved Matter . | . . . Retrieved Components . | . . . Parts Scanalyzed . | . . . Part Schematics Acquired . | . . . Parts Damaged . | . . . Bothacking | -11 -10 -10 ------------ Run | Scr Mat Min Used RIF Installer . | . . . Robots Hacked . | . . . Non-combat . | . . . Combat . | . . . Robot Hacks Applied . | . . . Relay Couplers Released . | . . . Fabnet Peak Effective % . | . . . Robots Rewired . | . . . Allies Hacked . | . . . Hacks Repelled . | . . . Allies | -11 -10 -10 -------- Run | Scr Mat Min Total Allies 3 | . . 3 Largest Group 3 | . . 3 Highest-Rated Group 40 | . . 40 Highest-Rated Ally 16 | . . 16 Total Orders . | . . . Ally Attacks 2 | . . 2 Total Damage 15 | . . 15 Kills . | . . . Allies Corrupted . | . . . Allies Melted . | . . . Intel | -11 -10 -10 ------- Run | Scr Mat Min Robot Analysis Total 2 | . 2 . Derelict Logs Recovered 1 | . . 1 Drone Launches . | . . . Drone Recoveries . | . . . Exploration | -11 -10 -10 ------------- Run | Scr Mat Min Turns Passed 2483 | 3 1690 790 Spaces Moved 1004 | 1 689 314 Core . | . . . Treads 1004 | 1 689 314 Legs . | . . . Wheels . | . . . Hover . | . . . Flight . | . . . Fastest Speed 160 | 160 160 240 Average Speed 211 | 160 198 240 Slowest Speed 240 | 160 240 240 Overloaded Moves . | . . . Propulsion Burnouts . | . . . Robots Hopped . | . . . Cave-ins Triggered . | . . . Exploration Rate (%) 54 | 2 90 71 Regions Visited 2 Branch Regions 1 Pre-discovered Areas 2 | . 2 . Known Exits Taken 1 | . 1 . Unknown Exits Taken 1 | 1 . . Scrap Searched . | . . . Spaces Dug . | . . . Terrain Destroyed 5 | . 5 . Melee . | . . . Projectile . | . . . AOE 5 | . 5 . Terrain Rammed . | . . . Walls Destroyed . | . . . Machines Disabled . | . . . Actions | -11 -10 -10 --------- Run | Scr Mat Min Total 1240 | 4 895 341 Wait 105 | . 92 13 Move 1002 | . 688 314 Hop . | . . . Pick Up 25 | . 21 4 Fast Attach 7 | . 7 . Attach 7 | 2 4 1 Detach . | . . . Swap 10 | . 8 2 Drop 18 | 2 15 1 Fire 66 | . 60 6 Melee . | . . . Ram . | . . . Kick . | . . . Crush . | . . . Escape Stasis . | . . . Rewire . | . . . Trap . | . . . Miscellaneous . | . . . Route ------- -11/Scrapyard -10/Materials (discovered 5 exits: [*Mat x3] / *Min x2) -10/Mines (discovered 2 exits: [*Mat x2]) History --------- Turn | Location | Event 4 | -11/Scrapyard | Discovered new exit (range 0) 4 | -11/Scrapyard | Entered Materials 54 | -10/Materials | Central database locked down 317 | -10/Materials | Build established: Mutant 421 | -10/Materials | Identified exit to Mines 426 | -10/Materials | Discovered new exit (range 16) 587 | -10/Materials | Discovered new exit (range 11) 1158 | -10/Materials | Discovered new exit (range 8) 1376 | -10/Materials | Repaired Lgt. Armor Plating 1403 | -10/Materials | Repaired Lgt. Treads 1430 | -10/Materials | Repaired Lgt. Treads 1694 | -10/Materials | Entered Mines 1701 | -10/Mines | Met a Derelict bent on vengeance 2059 | -10/Mines | Learned Materials stockpile data 2095 | -10/Mines | Discovered new exit (range 3) 2189 | -10/Mines | Met a Derelict shopkeep closing up shop 2330 | -10/Mines | Discovered new exit (range 15) 2383 | -10/Mines | Assisted by bots powering up and referring to "LRC-V3" 2458 | -10/Mines | Assembled infested the area 2472 | -10/Mines | Core integrity fell below 50% 2482 | -10/Mines | Core integrity fell below 20% 2484 | -10/Mines | Destroyed by D-53 Grenadier with Mini Grenade Launcher Last Messages --------------- 02265_ Acquired 20 matter. 02274_ R-06 Scavenger collects Sml. Laser. 02330_ EXIT=FOUND 02383_ Trooper 1a: "Hello LRC-V3. What is your command?" 02383_ Mercenary 1a: "Hello LRC-V3. What is your command?" 02383_ Trooper 1b: "Hello LRC-V3. What is your command?" 02434_ K-01 Serf cleans the Plasma Injector. 02458_ ALERT: Infestation in the mines, dispatching Demolisher response squad. 02469_ C-30 ARC bursts open, deploying its payload. 02469_ D-53 Grenadier unfolds itself. 02469_ Mercenary 1a destroyed. 02469_ Trooper 1b destroyed. 02469_ T-07 Excavator destroyed. 02471_ K-01 Serf collects debris. 02473_ Trooper 1a destroyed. 02474_ The unstable cave ceiling collapses. 02475_ K-01 Serf destroyed. 02481_ The unstable cave ceiling collapses. 02483_ K-01 Serf collects debris. Map ----- +----------------------------------------------------+ | ???????????????# #????????????# ##? | | ???????????????# ##????????????# #? | | ???????????????## ##??????####???# #? | | ????????????????## ##??????# ##??## < ##? | | ?????????????????# ####??## ##??# # ##?? | | ?????????????????## #### ##?# # #??# | | ??????????????????# ## ### # #### | | ??????????????????# # | | ??????????????????# # ## | | ?????????????????## ###### ## | | ?????????????????# ## #????# ## | | ?????????????????# < ### ##????# % | | ????????????????# ## #?# ####?????##### | | ???????????????# ### ### ####?????????# | | ???????????????# #?# # #?????????? | | ???????????????## ?# # #?####????? | | ????????????????## ?### #### ### ###### | | ?????????????????## ???# #### ## # | | ??????????????????## ##??# ## # | | ???????????????????####???# ## ## ## | | ??????????????????#########% ## ## ### | | ?????????????????#### ## k # r# | | ????????????????## dd """ | | ???????????????## u """ ### | | ???????????????# """ #?? | | ???????????????# @ k #?? | | ???????????????# ##?? | | ???????????????# ## ##??? | | ???????????????# ### ##???? | | ?????????????? # # #?# ##?????? | | ???????????? $ ####### #?# ##????### | | ???????????######???????# #?## #????## | | ????????????????????????# #??## #????# | | ????????????????????????# #????# #????# | | ????????????????????????# #????? ??????## | | ????????????????????????# #???????????????## | | ????????????????????????? #????????????????## | | ????????????????????????? #?????????????????# | | ?????????????????????????? ??????????????????? | | ???????????????????????????????????????????### | | ???????????????????????????????????????????# | | ???????????????????????????????????????????# # | | ???????????????????????????????????????????# # | | ???????????????????????????????????????????# # | | ?????????????????????????????????????????### # | | ?????????????????????????????????????????# # | | ?????????????????????????????????????????# ### | | ???????????????????????????????????????### ### | | ??????????????????????????????????????## ## | | ??????????????????????????????????????# | +----------------------------------------------------+ Best States ------------- Heat Dissipation 25 Energy Generation 10 Energy Capacity 250 Matter Stores 300 Matter Capacity 300 Sight Range 18 Terrain Scan Density 10 Armor Coverage 150 Evasion (%) 40 Recoil Reduction 2 Item Schematics ----------------- None Robot Schematics ------------------ None Fabricated ------------ Nothing Alien Tech Used ----------------- None Achievements -------------- None Challenges ------------ None Game ------ Seed PhasingNodeLaser Manual? 0 Play Time 00:10:39 Cumulative 516.8 hours Start 2021.11.27 @ 17:35:09 End 2021.11.27 @ 17:47:01 Sessions 1 Manual Loads 0 Difficulty Rogue Special Mode None Game No. 504 Rogue 504 Adventurer 0 Explorer 0 Win Type - Total 14 Types 9/1/3/1/0/0/0/0/0 Lore% 83 Gallery% 94 Achievement% 73 Wizard Run 0 Options --------- ASCII 0 Keyboard 0 Movement Mouse Keybinds 1 Fullscreen 2 Font 24/Smallcaps Map View 76x50 Tactical HUD 1 Map Filters NONE Filters NONE Steam 1 RUN: 240cb48e-8613-4c90-a580-e05d0f8e126d